Cogmind - Beta 17 @@@ ROGUE MODE // 2026.08.22 @ 05:34:59 Player: Six of Ten Result: Destroyed by B-75 Beast with Heavy Machine Gun Performance ------------- Evolutions (4) 2000 Regions Visited (8) 1600 Robots Destroyed (149) 745 Value Destroyed (7402) 7402 Prototype IDs (3) 60 Alien Tech Used (0) 0 Bonus (4069) 4069 TOTAL SCORE: 15876 Bonus ------- High Alert Combat Kills 1156 Follower Combat Kills 313 Entered Garrisons 600 Used RIF Installer 2000 Cogmind --------- Core Integrity 0/850 Matter 283/300 Energy 97/100 System Corruption 0% Temperature Cool (0) Movement Core (50) Location -6/Garrison Parts ------- > --- POWER (1) -------- (None) > --- PROPULSION (3) --- (None) > --- UTILITY (8) ------ (None) > --- WEAPON (3) ------- (None) > --- INVENTORY (5) ---- Surge Thruster Relay Coupler [Brawler] (23) Relay Coupler [Sentry] (18) Relay Coupler [Demolisher] (18) Missile Launcher Peak State ------------ > --- POWER ------------ Light Fission Core > --- PROPULSION ------- Compact Wheel Compact Wheel Armored Wheel > --- UTILITY ---------- High-capacity Storage Unit Machine Analyzer Hardened Light Armor Plating Hardened Light Armor Plating Authchip [R/Combat] Authchip [R/Combat] Relay Coupler [Swarmer] Relay Coupler [Brawler] > --- WEAPON ----------- Proton Cannon Gauss Rifle Remote Datajack > --- INVENTORY -------- Light Nuclear Core Light Nuclear Core Light Angular Momentum Engine Wheel Surge Thruster Hardened Light Armor Plating Authchip [R/Combat] Relay Coupler [Swarmer] Relay Coupler [Brawler] Relay Coupler [Specialist] Field Recycling Unit Proton Cannon Autogun Missile Launcher Datajack Remote Datajack Katana Blade Saw [Rating: 49] Favorites ----------- Power Light Nuclear Core Engine Improved Ion Engine Power Core Light Nuclear Core Propulsion Light Treads Treads Light Treads Leg Aluminum Leg Wheel Compact Wheel Hover Unit Gravmag System Flight Unit Surge Thruster Utility High-capacity Storage Unit Device Improved Heat Sink Storage High-capacity Storage Unit Processor Machine Analyzer Hackware Authchip [R/Combat] Protection Hardened Light Armor Plating Weapon Improved Assault Rifle Energy Gun Particle Gun Energy Cannon Proton Cannon Ballistic Gun Improved Assault Rifle Launcher Missile Launcher Special Weapon Remote Datajack Slashing Weapon Katana Special Melee Weapon Datajack Build | -11 -10 -9 -8 -8 -7 -7 -6 -6 ------- Run | Yrd Mat Mat Mat Gar Fac Gar Fac Gar Slots Evolved 8 | . . 2 2 . 2 . 2 . Power . | . . . . . . . . . Propulsion 1 | . . . 1 . . . . . Utility 6 | . . 1 1 . 2 . 2 . Weapon 1 | . . 1 . . . . . . Parts Attached 148 | 7 3 22 11 41 26 15 20 3 Power 23 | 1 2 4 3 5 1 3 3 1 Engine 12 | 1 2 4 . 1 1 1 2 . Core 11 | . . . 3 4 . 2 1 1 Reactor . | . . . . . . . . . Propulsion 36 | 2 . 4 2 14 7 2 5 . Treads 14 | 2 . 2 2 7 1 . . . Leg 3 | . . . . 3 . . . . Wheel 17 | . . 2 . 3 6 1 5 . Hover 1 | . . . . 1 . . . . Flight 1 | . . . . . . 1 . . Utility 44 | 2 1 5 3 8 12 5 6 2 Device 12 | 1 . 3 1 3 2 . 2 . Storage 4 | 1 1 . 1 . 1 . . . Processor 2 | . . . . 1 1 . . . Hackware 14 | . . . . . 6 3 3 2 Protection 12 | . . 2 1 4 2 2 1 . Artifact . | . . . . . . . . . Weapon 45 | 2 . 9 3 14 6 5 6 . Energy Gun 15 | 2 . 2 . 7 3 1 . . Energy Cannon 2 | . . . . . . . 2 . Ballistic Gun 18 | . . 7 2 2 1 3 3 . Ballistic Cannon . | . . . . . . . . . Launcher 2 | . . . 1 1 . . . . Special Weapon 3 | . . . . . 2 1 . . Impact Weapon . | . . . . . . . . . Slashing Weapon 3 | . . . . 2 . . 1 . Piercing Weapon . | . . . . . . . . . Special Melee Weapon 2 | . . . . 2 . . . . Unidentified Prototypes 3 | . 1 1 . 1 . . . . Parts Lost 88 | . 1 5 2 33 9 4 20 14 Power 11 | . 1 1 . 4 1 . 3 1 Propulsion 25 | . . 2 . 11 4 1 4 3 Utility 23 | . . 2 1 6 2 1 5 6 Weapon 29 | . . . 1 12 2 2 8 4 Highest Loss Streak 14 | . 1 2 1 8 3 3 11 14 To Critical Strikes . | . . . . . . . . . Average Backups 17 | 4 10 13 18 19 19 19 17 11 Power 1 | . . . . . . 1 2 . Propulsion 3 | 2 5 5 5 2 3 . 1 1 Utility 7 | . 3 5 6 9 10 11 7 7 Weapon 3 | . 1 2 5 3 2 3 4 1 Tool/Special . | . . . . . . . . . Unused Backups 21 | . 2 3 1 2 . 2 1 10 Power . | . . . . . . . . . Propulsion 4 | . 2 2 . . . . . . Utility 14 | . . . 1 1 . 2 . 10 Weapon 3 | . . 1 . 1 . . 1 . Tool/Special . | . . . . . . . . . Average Slot Usage (%) 94 | . 99 95 98 93 94 92 89 77 Engine 4 | . 13 10 3 1 2 3 . 5 Core 4 | . . . 5 6 4 3 4 . Treads 14 | . 27 10 26 17 . . . . Wheel 7 | . . 9 . 4 19 14 16 17 Device 9 | . 14 11 5 15 5 . . 12 Storage 9 | . 14 11 9 9 7 7 6 6 Processor 2 | . . . . 2 6 7 6 5 Hackware 5 | . . . . . 20 16 20 16 Protection 9 | . . 8 21 8 1 13 14 . Energy Gun 9 | . 28 17 . 10 3 6 . . Ballistic Gun 9 | . . 14 26 9 . 6 5 . Special Weapon 1 | . . . . . 6 3 3 . Slashing Weapon 3 | . . . . 4 10 3 2 5 Peak Build Rating 49 | 8 11 21 31 33 39 38 49 42 Average Rating 26 | 5 8 16 28 26 35 35 41 37 On Entrance 22 | . 8 11 21 30 27 33 37 37 Avg Prop Armor Cover (%) 7 | . . . 5 8 . 4 3 . Naked Turns 3 | . . . . . . . . 3 Heaviest Build 77 | 15 33 44 75 72 64 72 77 61 Greatest Support 69 | 40 40 46 69 66 63 32 44 30 Greatest Overweight (x) 15 | 3 1 2 1 15 3 3 5 13 Average Overweight (x) 1 | . . . . 1 1 1 1 1 Largest Inventory Capacity 20 | 8 15 15 20 20 20 20 20 20 Average Capacity 18 | 7 14 15 19 20 20 20 20 19 Most Carried 20 | 8 15 15 20 20 20 20 20 17 Average Carried 17 | 4 10 13 18 19 19 19 17 11 Final Capacity 20 | 8 15 15 20 20 20 20 20 5 Final Carried 20 | 8 14 15 20 20 18 20 10 5 Class Distribution -------------------- 22% | Tank 20% | Bothacker-Mutant 16% | Scavenger-Tank 12% | Mutant 9% | Scavenger-Mutant 7% | Bothacker-Tank 5% | Skirmisher Dominant Class ---------------- Mutant | -10/Materials Skirmisher | -9/Materials Tank | -8/Materials Scavenger-Tank | -8/Garrison Bothacker-Mutant | -7/Factory Bothacker-Tank | -7/Garrison Bothacker-Mutant | -6/Factory Bothacker-Mutant | -6/Garrison Resources | -11 -10 -9 -8 -8 -7 -7 -6 -6 ----------- Run | Yrd Mat Mat Mat Gar Fac Gar Fac Gar Matter Collected 4031 | 269 31 389 754 1208 261 357 754 8 Remotely . | . . . . . . . . . Salvage Created 5456 | 55 278 997 1235 1576 146 309 835 25 Parts 310 | 7 14 67 65 86 12 14 41 4 Haulers Intercepted . | . . . . . . . . . Recyclers Shooed 2 | . . 1 . . . . 1 . Parts Field Recycled 17 | . . 4 4 4 5 . . . Retrieved Matter 140 | . . 28 34 26 52 . . . Parts Self-Destructed . | . . . . . . . . . Prevented . | . . . . . . . . . Parts Restored . | . . . . . . . . . Kills | -11 -10 -9 -8 -8 -7 -7 -6 -6 ------- Run | Yrd Mat Mat Mat Gar Fac Gar Fac Gar Combat Hostiles Destroyed 136 | . 8 28 28 45 3 6 17 1 Melee 6 | . . . . 2 1 . 2 1 Guns 111 | . 7 27 25 37 2 5 8 . Cannons 3 | . . . . . . . 3 . AOE 14 | . . . 3 6 . 1 4 . Classes Destroyed 14 | 1 3 4 . 2 . 1 3 . Worker 2 | . . . . . . . 2 . Builder 3 | . . . . . . . 3 . Tunneler 2 | 2 . . . . . . . . Operator 1 | . . 1 . . . . . . Watcher 5 | . . 3 2 . . . . . Swarmer 39 | . 2 13 7 10 . 3 4 . Cutter 2 | . . . . . . 1 . 1 Grunt 57 | . 5 8 13 20 2 . 9 . Brawler 1 | . . . . 1 . . . . Duelist 1 | . . 1 . . . . . . Sentry 24 | . . 6 8 7 . 2 1 . Hunter 2 | . . . . . . . 2 . Programmer 9 | . . . . 7 1 . 1 . Subdweller 1 | . 1 . . . . . . . Best Kill Streak 10 | 2 2 7 5 10 1 3 5 1 Combat Bots Only 10 | . 2 7 5 10 1 3 4 1 Max Kills in Single Turn 3 | 2 1 2 3 2 1 1 2 1 Gunslinging 1 | . . 1 1 1 . . . . Exploded 3 | . . . 3 2 . 1 1 . Melee 1 | . . . . 1 1 . 1 1 Uniques/NPCs Destroyed . | . . . . . . . . . Combat | -11 -10 -9 -8 -8 -7 -7 -6 -6 -------- Run | Yrd Mat Mat Mat Gar Fac Gar Fac Gar Hostile Shots Fired 1190 | . 45 125 151 308 147 100 212 102 Missed 346 | . 13 24 46 72 62 25 72 32 Hits 844 | . 32 101 105 236 85 75 140 70 Melee 33 | . . 5 . 2 . 15 . 11 Projectile 811 | . 32 96 105 234 85 60 140 59 AOE 3 | . . . . . . 3 . . Critical Strikes 41 | . 1 3 5 16 2 7 2 5 Damage Taken 10958 | . 453 1250 1228 3251 730 1058 2112 876 Core 2101 | . 108 288 101 420 181 131 413 459 Absorbed by Shields 589 | . . . 288 212 89 . . . Regen/Repaired (Parts) 515 | . 117 78 320 . . . . . Core Remaining (%) 48 | 100 56 28 . 5 . 55 . . Volleys Fired 399 | 2 29 56 76 116 18 33 64 5 Largest 3 | 2 2 3 3 3 2 3 3 1 Hottest 199 | 100 100 160 82 199 145 144 111 75 Shots Fired 934 | 4 58 154 218 307 23 51 114 5 Gun 851 | 4 58 154 217 296 11 41 70 . Cannon 28 | . . . . . . . 24 4 Launcher 18 | . . . 1 11 . 1 5 . Special 37 | . . . . . 12 9 15 1 Kinetic 558 | . . 64 217 188 . 19 70 . Thermal 288 | 4 58 90 . 108 6 22 . . Explosive 18 | . . . 1 11 . 1 5 . Electromagnetic 33 | . . . . . 5 . 24 4 Robot Hit Streak 33 | 3 7 24 33 17 12 10 11 3 Robot Miss Streak 7 | . 3 3 2 4 1 5 7 . Penetration Max 1 | . . . . . . 1 . . Secondary Targets 17 | . 1 5 1 8 . 1 1 . Max Gunslinging Chain 1 | . 1 1 1 1 . 1 1 . Shots Hit Robots 680 | 3 37 107 162 202 26 47 93 3 Core Hits 326 | 2 14 47 60 87 7 22 86 1 Critical Kills 1 | . . 1 . . . . . . Critical Parts Destroyed 3 | . . . . 2 . . 1 . Critical Strikes 25 | . 3 7 . 11 1 1 2 . Burn 17 | . 3 6 . 7 . 1 . . Destroy 4 | . . 1 . 2 . . 1 . Corrupt 1 | . . . . . . . 1 . Sever 3 | . . . . 2 1 . . . Melee Attacks 76 | . . . . 24 8 21 12 11 Impact . | . . . . . . . . . Slashing 71 | . . . . 19 8 21 12 11 Piercing . | . . . . . . . . . Sneak Attacks 7 | . . . . 5 . . 2 . Combat Hostiles . | . . . . . . . . . Follow-up Attacks 3 | . . . . 2 1 . . . Damage Inflicted 12445 | 52 486 1499 2561 4166 348 1329 1968 36 Guns 8893 | 52 486 1499 2445 2953 184 443 831 . Cannons 465 | . . . . . . . 465 . Explosions 1504 | . . . 116 892 . 25 471 . Melee 1581 | . . . . 319 164 861 201 36 Ramming 2 | . . . . 2 . . . . Kinetic 5895 | . . 517 2445 1885 . 217 831 . Thermal 2914 | 52 486 982 . 1068 100 226 . . Explosive 1420 | . . . 116 892 . 25 387 . Electromagnetic 633 | . . . . . 84 . 549 . Impact . | . . . . . . . . . Slashing 1581 | . . . . 319 164 861 201 36 Piercing . | . . . . . . . . . Highest Corruption 15 | . . . . 15 3 3 . . Average Corruption 10 | . . . . 12 3 3 . . Corruption Purged . | . . . . . . . . . Corruption Blocked . | . . . . . . . . . Effects 120 | . . . . 108 . 12 . . Message Errors 29 | . . . . 26 . 3 . . Matter Fused 22 | . . . . 21 . 1 . . Heat Flow Errors 14 | . . . . 10 . 4 . . Energy Discharges 16 | . . . . 14 . 2 . . Parts Rejected 1 | . . . . 1 . . . . Parts Fused 1 | . . . . 1 . . . . Data Loss (minor) 25 | . . . . 23 . 2 . . Data Loss (major) 2 | . . . . 2 . . . . Misfires 4 | . . . . 4 . . . . Alerts 2 | . . . . 2 . . . . Weapon Failures 4 | . . . . 4 . . . . Overload Shots . | . . . . . . . . . Overflow Damage 49 | . . . . 8 16 25 . . Projectiles . | . . . . . . . . . Explosions 33 | . . . . 8 . 25 . . Melee 16 | . . . . . 16 . . . Knockbacks . | . . . . . . . . . Impact . | . . . . . . . . . Kinetic . | . . . . . . . . . Secondary . | . . . . . . . . . Self-Inflicted Damage 43 | . . . . . . 43 . . Shots 1 | . . . . . . 1 . . Rammed 2 | . . . . 2 . . . . Targets Rammed 2 | . . . . 2 . . . . Kicked . | . . . . . . . . . Crushed . | . . . . . . . . . Highest Temperature 777 | 39 279 303 385 777 92 356 299 295 Average Temperature 107 | 20 100 81 95 143 36 108 80 97 Received Heat Transfer 3413 | . 210 342 625 1091 159 123 375 488 Effects 30 | . . 1 7 17 . 5 . . Shutdowns 4 | . . . 1 2 . 1 . . Energy Bleed 2 | . . . 1 1 . . . . Interference 14 | . . 1 3 6 . 4 . . Short Circuit 2 | . . . 1 1 . . . . Damage (minor) 1 | . . . 1 . . . . . Damage (major) 6 | . . . . 6 . . . . Damage (core) 1 | . . . . 1 . . . . Siege Activations . | . . . . . . . . . Martial Activations . | . . . . . . . . . Shielding Activations . | . . . . . . . . . Robots Disrupted 2 | . . . . . . . 2 . Combat Hostiles 1 | . . . . . . . 1 . Robots Corrupted . | . . . . . . . . . Combat Hostiles . | . . . . . . . . . Parts Fried 2 | . . . . . . . 2 . Impact Corruptions . | . . . . . . . . . Robots Melted 2 | . 1 1 . . . . . . Combat Hostiles 2 | . 1 1 . . . . . . Parts Melted 27 | . 5 10 . 10 . 2 . . Heat Transferred 8033 | 148 1665 2817 . 2559 235 609 . . Parts Sabotaged . | . . . . . . . . . Parts Stolen . | . . . . . . . . . Parts Stripped . | . . . . . . . . . Power Chain Reactions . | . . . . . . . . . Alert | -11 -10 -9 -8 -8 -7 -7 -6 -6 ------- Run | Yrd Mat Mat Mat Gar Fac Gar Fac Gar Maximum Alert Level 5 | . . 2 2 5 4 3 2 2 Low Security (%) 21 | 100 100 45 33 . . . . . Level 1 23 | . . 20 60 2 . . 97 88 Level 2 16 | . . 33 6 18 . 80 2 11 Level 3 13 | . . . . 16 67 19 . . Level 4 12 | . . . . 27 32 . . . Level 5 12 | . . . . 35 . . . . High Security . | . . . . . . . . . Max Security . | . . . . . . . . . Peak Influence 2362 | 10 65 450 452 2362 1239 781 409 431 Initial 1239 | . . 10 185 291 1239 521 409 242 Average 700 | . 11 227 244 1319 1039 636 311 310 Influence Increases 5641 | 10 230 862 769 2461 172 340 578 219 Destroy 0b10 Robot/C 2900 | . 140 560 560 920 100 200 400 20 Destroy 0b10 Robot/NC 80 | 10 . 20 10 . 5 5 30 . Destroy Leader 470 | . 40 136 154 30 30 10 70 . Allied During Kill 22 | . . . . 2 3 5 12 . Successful Hack 105 | . 5 37 14 16 19 . . 14 Select Force Hacks 60 | . 30 30 . . . . . . Disable Machine 45 | . . . 15 . . . 30 . Anti-Garrison Action 1550 | . . . . 1300 . 100 . 150 Destroy Structure 199 | . . 4 16 118 . 20 21 20 Partial Spotted 15 | . . . . 15 . . . . Lose Combat Pursuer 195 | . 15 75 . 60 15 . 15 15 Influence Decreases 5340 | 10 204 449 760 547 1789 304 1012 265 Entered New Map 2251 | . . 16 254 157 1123 224 372 105 Time Decay 1839 | 10 194 383 486 . 386 . 380 . Lost Part 880 | . 10 50 20 330 90 40 200 140 Lost Ally 220 | . . . . 60 40 40 60 20 Purge Threat 150 | . . . . . 150 . . . Squads Dispatched 24 | . 3 3 6 . 6 . 6 . Investigation 11 | . 1 3 1 . 3 . 3 . Extermination 2 | . . . . . 1 . 1 . Reinforcement 7 | . 2 . 3 . . . 2 . Assault 1 | . . . . . 1 . . . Garrison 3 | . . . 2 . 1 . . . Intercept . | . . . . . . . . . Searches Triggered . | . . . . . . . . . Construction Impeded 2 | . . . . . . . 2 . Haulers Reinforced . | . . . . . . . . . Active Scanning Responses . | . . . . . . . . . Cargo Convoy Interrupts . | . . . . . . . . . Stealth | -11 -10 -9 -8 -8 -7 -7 -6 -6 --------- Run | Yrd Mat Mat Mat Gar Fac Gar Fac Gar Distress Signals 10 | . 3 2 2 . 2 . 1 . Communications Jammed . | . . . . . . . . . Distress Signals . | . . . . . . . . . Times Spotted 233 | . 19 42 43 50 15 19 38 7 Peak Tracking Total 7 | . 5 7 5 5 3 6 7 4 Tactical Retreats 11 | . 2 3 . 3 1 . 1 1 Traps | -11 -10 -9 -8 -8 -7 -7 -6 -6 ------- Run | Yrd Mat Mat Mat Gar Fac Gar Fac Gar Traps Triggered 14 | . . 2 . 4 3 1 . 4 Indirectly . | . . . . . . . . . Trap Hack Attempts . | . . . . . . . . . Triggered . | . . . . . . . . . Disarmed . | . . . . . . . . . Reprogrammed . | . . . . . . . . . Reused . | . . . . . . . . . Traps Extracted . | . . . . . . . . . Installed . | . . . . . . . . . Triggered . | . . . . . . . . . Machines | -11 -10 -9 -8 -8 -7 -7 -6 -6 ---------- Run | Yrd Mat Mat Mat Gar Fac Gar Fac Gar Machines Disabled 15 | . . . 1 7 . 2 2 3 Max in Single Turn 3 | . . . 1 3 . 1 1 1 Garrison Relay 13 | . . . . 7 . 2 . 4 Machines Repaired . | . . . . . . . . . Machines Dismantled . | . . . . . . . . . Machines Sabotaged . | . . . . . . . . . Overloaded Fab Kills . | . . . . . . . . . Hacking | -11 -10 -9 -8 -8 -7 -7 -6 -6 --------- Run | Yrd Mat Mat Mat Gar Fac Gar Fac Gar Machines Accessed 41 | . 3 15 6 3 8 . 5 1 Terminals 27 | . 1 12 2 3 6 . 2 1 Fabricators 2 | . . . . . . . 2 . Repair Stations 4 | . 1 1 2 . . . . . Recycling Units 2 | . 1 1 . . . . . . Scanalyzers 3 | . . 1 1 . 1 . . . Garrison Access 3 | . . . 1 . 1 . 1 . Total Hacks 119 | . 6 40 25 7 28 . 12 1 Successful 65 | . 4 23 16 2 14 . 5 1 Failed 54 | . 2 17 9 5 14 . 7 . Catastrophic 10 | . 1 3 2 1 1 . 2 . Database Lockouts . | . . . . . . . . . Manual 62 | . 4 31 9 . 12 . 6 . Terminals 75 | . 3 32 9 7 17 . 6 1 Fabricators 5 | . . . . . . . 5 . Repair Stations 14 | . 2 2 10 . . . . . Recycling Units 3 | . 1 2 . . . . . . Scanalyzers 18 | . . 4 5 . 9 . . . Garrison Access 4 | . . . 1 . 2 . 1 . Terminal Hacks 10 | . . 2 1 2 3 . 1 1 Robot Analysis 1 | . . 1 . . . . . . Emergency Access Points 2 | . . . . 1 . . . 1 Terminal Index 2 | . . 1 1 . . . . . Alert Level 1 | . . . . . 1 . . . Unreport Threat 1 | . . . . . 1 . . . Locate Traps 1 | . . . . . 1 . . . Zone Layout 1 | . . . . . . . 1 . Security Stations 1 | . . . . 1 . . . . Fabricator Hacks 2 | . . . . . . . 2 . Load Schematic 1 | . . . . . . . 1 . Build 1 | . . . . . . . 1 . Repair Station Hacks 11 | . 2 2 7 . . . . . Scan Component 6 | . 1 1 4 . . . . . Repair 5 | . 1 1 3 . . . . . Recycling Unit Hacks 1 | . . 1 . . . . . . Report Inventory 1 | . . 1 . . . . . . Scanalyzer 13 | . . 4 4 . 5 . . . Insert Component 3 | . . 1 1 . 1 . . . Analyze 2 | . . 1 1 . . . . . Retrieve Study 8 | . . 2 2 . 4 . . . Garrison Access Hacks 4 | . . . 1 . 2 . 1 . Unlock Access 3 | . . . 1 . 1 . 1 . Coupler Status 1 | . . . . . 1 . . . Unauthorized Hacks 24 | . 2 14 3 . 4 . 1 . Terminals 22 | . 1 13 3 . 4 . 1 . Track 1 | . . 1 . . . . . . Botnet 19 | . 1 11 2 . 4 . 1 . Operators 2 | . . 1 1 . . . . . Fabricators . | . . . . . . . . . Repair Stations . | . . . . . . . . . Recycling Units 2 | . 1 1 . . . . . . Tunnel 2 | . 1 1 . . . . . . Scanalyzers . | . . . . . . . . . Garrison Access . | . . . . . . . . . Data Cores Recovered . | . . . . . . . . . Used . | . . . . . . . . . Hacking Detections 37 | . 2 14 5 3 8 . 4 1 Full Trace Events 8 | . . 2 1 . 2 . 3 . Feedback Events . | . . . . . . . . . Feedback Blocked . | . . . . . . . . . Robot Schematics Acquired . | . . . . . . . . . Robots Built . | . . . . . . . . . Authchips . | . . . . . . . . . Time . | . . . . . . . . . Total Robot Build Rating . | . . . . . . . . . Part Schematics Acquired 2 | . . 1 1 . . . . . Parts Built . | . . . . . . . . . Authchips . | . . . . . . . . . Time 51 | . . . . . . . 51 . Total Part Build Rating . | . . . . . . . . . Part Studies Acquired 8 | . . 2 2 . 4 . . . Parts Repaired 5 | . 1 1 3 . . . . . Time 167 | . 26 26 115 . . . . . Parts Recycled . | . . . . . . . . . Recycled Matter . | . . . . . . . . . Retrieved Matter . | . . . . . . . . . Retrieved Components . | . . . . . . . . . Parts Scanalyzed 3 | . . 1 1 . 1 . . . Part Schematics Acquired 2 | . . 1 1 . . . . . Parts Damaged . | . . . . . . . . . Bothacking | -11 -10 -9 -8 -8 -7 -7 -6 -6 ------------ Run | Yrd Mat Mat Mat Gar Fac Gar Fac Gar Used RIF Installer 4 | . . . . 2 . 2 . . Command Fork 1 | . . . . . . 1 . . Signal Jammer 1 | . . . . . . 1 . . Watcher Feeds 1 | . . . . 1 . . . . Robots Hacked 22 | . . . . . 5 7 9 1 Non-combat 1 | . . . . . 1 . . . Combat 21 | . . . . . 4 7 9 1 Robot Hacks Applied 27 | . . . . . 9 7 10 1 find_garrison 1 | . . . . . . . 1 . broadcast_data 1 | . . . . . . 1 . . overload_power 6 | . . . . . 2 . 4 . amplify_resonance 6 | . . . . . 2 3 1 . wipe_record 1 | . . . . . 1 . . . reboot_system 1 | . . . . . . . 1 . go_dormant 1 | . . . . . 1 . . . overwrite_iff 1 | . . . . . 1 . . . streamctrl_high 2 | . . . . . . 2 . . formatsys_high 7 | . . . . . 2 1 3 1 Relay Couplers Released 54 | . . . . 33 . 6 . 15 Machine Destruction 54 | . . . . 33 . 6 . 15 Attached 10 | . . . . . 4 3 1 2 Fabnet Peak Effective % . | . . . . . . . . . Robots Rewired 3 | . . . . 3 . . . . Allies Hacked . | . . . . . . . . . Hacks Repelled . | . . . . . . . . . Allies | -11 -10 -9 -8 -8 -7 -7 -6 -6 -------- Run | Yrd Mat Mat Mat Gar Fac Gar Fac Gar Total Allies 13 | . . . . 3 2 3 4 1 Largest Group 3 | . . . . 3 1 2 3 1 Highest-Rated Group 78 | . . . . 54 32 28 78 32 Highest-Rated Ally 32 | . . . . 18 32 20 29 32 Total Orders 6 | . . . . 6 . . . . STAY 3 | . . . . 3 . . . . FOLLOW 3 | . . . . 3 . . . . Ally Attacks 54 | . . . . 8 9 16 18 3 Total Damage 1029 | . . . . 201 182 225 269 152 Kills 13 | . . . . 1 3 4 5 . Allies Corrupted 1 | . . . . . . . 1 . Allies Melted . | . . . . . . . . . Intel | -11 -10 -9 -8 -8 -7 -7 -6 -6 ------- Run | Yrd Mat Mat Mat Gar Fac Gar Fac Gar Active Infowar (turns) 3828 | 36 906 487 . . 798 487 887 227 Terrain 489 | . . 485 . . . . 3 1 Structural 38 | . . . . . . . 37 1 Seismic 1350 | 36 906 408 . . . . . . Machine Analysis 2399 | . . . . . 798 487 887 227 Robot Analysis Total 1 | . . 1 . . . . . . Derelict Logs Recovered . | . . . . . . . . . Drone Launches . | . . . . . . . . . Drone Recoveries . | . . . . . . . . . Exploration | -11 -10 -9 -8 -8 -7 -7 -6 -6 ------------- Run | Yrd Mat Mat Mat Gar Fac Gar Fac Gar Turns Passed 9304 | 153 906 1139 1268 3249 913 545 887 244 Spaces Moved 4470 | 81 290 588 415 1511 599 289 545 152 Core 18 | 10 . . . 1 . . . 7 Treads 2014 | 71 290 274 415 952 12 . . . Legs 135 | . . . . 135 . . . . Wheels 2303 | . . 314 . 423 587 289 545 145 Hover . | . . . . . . . . . Flight . | . . . . . . . . . Fastest Speed 50 | 50 160 85 160 100 100 105 85 50 Average Speed 146 | 156 162 127 192 173 115 113 109 100 Slowest Speed 800 | 200 240 240 213 800 160 135 165 700 Overloaded Moves . | . . . . . . . . . Propulsion Burnouts . | . . . . . . . . . Robots Hopped . | . . . . . . . . . Potential Cave-ins . | . . . . . . . . . Cave-ins Triggered . | . . . . . . . . . Exploration Rate (%) 35 | 3 43 52 39 83 13 42 19 24 Regions Visited 8 Branch Regions . Pre-discovered Areas 2 | . 1 1 . . . . . . Known Exits Taken 3 | . . . 1 . 1 . 1 . Unknown Exits Taken 3 | 1 1 1 . . . . . . Scrap Searched . | . . . . . . . . . Spaces Dug 2 | . . . . . . . 2 . Terrain Destroyed 101 | . . . 11 64 . 5 21 . Melee 2 | . . . . . . . 2 . Projectile . | . . . . . . . . . AOE 99 | . . . 11 64 . 5 19 . Terrain Rammed . | . . . . . . . . . Walls Destroyed . | . . . . . . . . . Machines Disabled . | . . . . . . . . . Actions | -11 -10 -9 -8 -8 -7 -7 -6 -6 --------- Run | Yrd Mat Mat Mat Gar Fac Gar Fac Gar Total 6340 | 102 669 864 713 1843 792 424 715 218 Wait 965 | 3 334 164 192 94 90 43 45 . Move 4463 | 80 289 587 415 1508 599 288 545 152 Hop . | . . . . . . . . . Pick Up 92 | 9 9 14 10 20 10 10 3 7 Fast Attach 75 | 7 2 10 4 24 12 6 8 2 Attach 66 | . 1 7 4 17 11 5 15 6 Detach 9 | . . 2 . 3 1 . 1 2 Swap 66 | . 1 9 7 17 8 12 12 . Drop 62 | 1 4 15 5 12 15 6 3 1 Fire 399 | 2 29 56 76 116 18 33 64 5 Melee 73 | . . . . 22 7 21 12 11 Ram 1 | . . . . 1 . . . . Kick . | . . . . . . . . . Crush 1 | . . . . 1 . . . . Escape Stasis 50 | . . . . 2 16 . . 32 Rewire 18 | . . . . 6 5 . 7 . Trap . | . . . . . . . . . Miscellaneous . | . . . . . . . . . Route ------- -11/Scrapyard -10/Materials (discovered 3 exits: *Mat x2 / [*Sub]) -9/Materials -8/Materials (discovered 3 exits: *Fac / [*Sto] / Gar) -8/Garrison (discovered 3 exits: *Fac x3) -7/Factory -7/Garrison -6/Factory (discovered 2 exits: [*Low] / Gar) -6/Garrison History --------- Turn | Location | Event 24 | -11/Scrapyard | Discovered new exit (range 15) 154 | -11/Scrapyard | Entered Materials 316 | -10/Materials | Build established: Mutant 604 | -10/Materials | Discovered new exit (range 9) 754 | -10/Materials | Derelicts attacked the area 904 | -10/Materials | Discovered new exit (range 12) 964 | -10/Materials | Discovered new exit (range 11) 995 | -10/Materials | Repaired Lgt. Treads 1060 | -10/Materials | Entered another Materials area 1060 | -9/Materials | Evolved 2 slots: Utility x1, Weapon x1 1331 | -9/Materials | Build established: Skirmisher 1583 | -9/Materials | Core integrity fell below 50% 1785 | -9/Materials | Destroyed 7 combat bots 1961 | -9/Materials | Repaired Lgt. Armor Plating 2150 | -9/Materials | Discovered new exit (range 13) 2199 | -9/Materials | Entered another Materials area 2199 | -8/Materials | Evolved 2 slots: Propulsion x1, Utility x1 2412 | -8/Materials | Build established: Tank 2701 | -8/Materials | Discovered new exit (range 9) 2941 | -8/Materials | Discovered new exit (range 12) 3270 | -8/Materials | Repaired Hrd. Light Armor Plating 3304 | -8/Materials | Repaired Imp. Treads+ 3345 | -8/Materials | Garrison activated, responded to threat 3356 | -8/Materials | Repaired Imp. Assault Rifle 3467 | -8/Materials | Identified exit to Garrison 3467 | -8/Materials | Entered Garrison 3473 | -8/Garrison | Triggered checkpoint 3599 | -8/Garrison | Destroyed 10 combat bots 3647 | -8/Garrison | Triggered checkpoint 3959 | -8/Garrison | Triggered checkpoint 4055 | -8/Garrison | Garrison Relay disabled 4093 | -8/Garrison | Triggered checkpoint 4152 | -8/Garrison | Lost 3 parts (1p1n1u) 4297 | -8/Garrison | Learned Factory security intel 4309 | -8/Garrison | System corruption reached 10% 4355 | -8/Garrison | Lost 4 parts (1n1u2w) 4375 | -8/Garrison | Garrison Relay disabled 4375 | -8/Garrison | Garrison Relay disabled 4414 | -8/Garrison | Lost 3 parts (1p1n1u) 4444 | -8/Garrison | Garrison Relay disabled 4510 | -8/Garrison | Discovered new exit (range 10) 4569 | -8/Garrison | Triggered checkpoint 4721 | -8/Garrison | Build established: Scavenger-Tank 4765 | -8/Garrison | Triggered checkpoint 4856 | -8/Garrison | Discovered new exit (range 10) 4909 | -8/Garrison | Triggered checkpoint 4959 | -8/Garrison | Triggered checkpoint 5151 | -8/Garrison | Triggered checkpoint 5185 | -8/Garrison | Core integrity fell below 50% 5249 | -8/Garrison | Lost 8 parts (1p3n1u3w) 5332 | -8/Garrison | Discovered new exit (range 11) 5415 | -8/Garrison | Triggered checkpoint 5500 | -8/Garrison | Garrison Relay disabled 5823 | -8/Garrison | Core integrity fell below 20% 5865 | -8/Garrison | Garrison Relay disabled 5886 | -8/Garrison | Lost 3 allies 5911 | -8/Garrison | Lost 7 parts (1p2n1u3w) 6025 | -8/Garrison | Build established: Scavenger-Mutant 6177 | -8/Garrison | Triggered checkpoint 6365 | -8/Garrison | Installed Relay Interface Framework 6667 | -8/Garrison | Build established: Bothacker-Mutant 6689 | -8/Garrison | Expanded RIF knowledge: Watcher Feeds 6716 | -8/Garrison | Entered Factory 6716 | -7/Factory | Evolved 2 slots: Utility x2 7116 | -7/Factory | First assault squad dispatched 7558 | -7/Factory | Garrison activated, responded to threat 7617 | -7/Factory | Lost 3 parts (1p1n1w) 7629 | -7/Factory | Identified exit to Garrison 7629 | -7/Factory | Entered Garrison 7692 | -7/Garrison | Expanded RIF knowledge: Signal Jamming 7714 | -7/Garrison | Triggered checkpoint 7789 | -7/Garrison | Expanded RIF knowledge: Command Fork 7814 | -7/Garrison | Garrison Relay disabled 7947 | -7/Garrison | Triggered checkpoint 7951 | -7/Garrison | Lost 3 parts (1n1u1w) 7987 | -7/Garrison | Triggered checkpoint 8057 | -7/Garrison | Discovered new exit (range 10) 8095 | -7/Garrison | Triggered checkpoint 8121 | -7/Garrison | Garrison Relay disabled 8174 | -7/Garrison | Entered Factory 8174 | -6/Factory | Evolved 2 slots: Utility x2 8199 | -6/Factory | Build established: Bothacker-Tank 8491 | -6/Factory | Discovered new exit (range 12) 8575 | -6/Factory | Build established: Bothacker-Mutant 8851 | -6/Factory | Lost 6 parts (1p2n2u1w) 9040 | -6/Factory | Lost 11 parts (2p1n2u6w) 9061 | -6/Factory | Identified exit to Garrison 9061 | -6/Factory | Entered Garrison 9144 | -6/Garrison | Garrison Relay disabled 9177 | -6/Garrison | Spotted B-75 Beast 9240 | -6/Garrison | Garrison Relay disabled 9258 | -6/Garrison | Garrison Relay disabled 9277 | -6/Garrison | Core integrity fell below 50% 9285 | -6/Garrison | Garrison Relay disabled 9296 | -6/Garrison | Core integrity fell below 20% 9305 | -6/Garrison | Destroyed by B-75 Beast with Heavy Machine Gun Last Messages --------------- 09285_ Relay Coupler [Specialist] tumbles out of relay unit. 09285_ Relay Coupler [Grunt] tumbles out of relay unit. 09285_ Relay Coupler [Sentry] tumbles out of relay unit. 09286_ Authchip [R/Combat] destroyed. 09286_ Blade Saw destroyed. 09286_ Structural Scanner destroyed. 09288_ Remote Datajack+ destroyed. 09288_ Machine Analyzer destroyed. 09288_ Authchip [R/Combat] destroyed. 09291_ Relay Coupler [Sentry] destroyed. 09291_ Lgt. Nuclear Core destroyed. 09291_ Knocked back. 09292_ Datajack+ destroyed. 09294_ Critical hit (Meltdown: +320). 09294_ Adv. Terrain Scanner destroyed. 09298_ Relay Coupler [Sentry] severed. 09298_ Acquired Wheel+. 09300_ Acquired 5 matter. 09302_ Wheel+ destroyed. 09302_ Dropped Hcp. Storage Unit. Map ----- +----------------------------------------------------+ | | | | | | | | | | | | | ??????????????????????????????????????? | | ??????????????????????????????????????? | | ??????????????????????????????????????? | | ??????????????????????????????????????? | | ??????????????????????????????????????? | | ??????????????????????????????????????? | | ??????????????????????????????????????? | | ??????????????????????????????????????? | | ??#######?????????????????????????????? | | ??# #?????????????????????????????? | | ??# #?????????????????????????????? | | ??# #?????????????????????????????? | | ??# ###?????????????????????????????? | | ??# #???????????????????????????????? | | ??# #???????????????????????????????? | | ??# #???????????????????????????????? | | ??# #???????????????????????????????? | | ??# #????????????#######????????????? | | ??# #????????????# """"######???????? | | ??# #???????????##" @c #???????? | | ??# #???????????# ! "# ###??????? | | ??# #?????????####+#% " ! #??????? | | ??# #????????## %* !!!"#??????? | | ??# ########## p! BBY!!!!"#??????? | | ### + BB!%=!""#??????? | | ;;###+#"" ! !*""#??????? | | ###^^ #### ####??# !! #+###??????? | | ??#^^ #??# #?????##" #???????? | | ??# #??# "??????#"""""######???????? | | ??# #??# "??????#######????????????? | | ??#^^ #??# "?????????????????????????? | | ??# ##?# #?????????????????????????? | | ??# T#?# #?????????????????????????? | | ??# ##?# #?????????????????????????? | | ??# #??# ###???????????????????????? | | ??# #??# #"#???????????????????????? | | ??# #??# "#???????????????????????? | | ??# #### "#???????????????????????? | | ### + + "#???????????????????????? | | # #???????????????????????? | | ### #########???????????????????????? | | ??# #???????????????????????????????? | | ### #???????????????????????????????? | | #???????????????????????????????? | +----------------------------------------------------+ Best States ------------- Heat Dissipation 59 Energy Generation 18 Energy Capacity 290 Matter Stores 300 Matter Capacity 300 Sight Range 16 Terrain Scan Range 20 Terrain Scan Density 10 Additional Mass Support 6 Armor Coverage 525 Evasion (%) 43 Target Analysis 5 Recoil Reduction 3 Offensive Hacking 10 Relay Coupler Types 3 Relay Coupler Value 60 Authchip Count 4 Item Schematics ----------------- Wheel | -9/Materials | Scanalyzed Imp. Assault Rifle | -8/Materials | Scanalyzed Robot Schematics ------------------ None Fabricated ------------ Nothing Repaired ---------- Lgt. Treads | 16% | -10/Materials Lgt. Armor Plating | 13% | -9/Materials Hrd. Light Armor Plating | 16% | -8/Materials Imp. Treads | 43% | -8/Materials Imp. Assault Rifle | 40% | -8/Materials Studied --------- Med. Laser | -9/Materials | Hacked Wheel | -9/Materials | Hacked Imp. Treads | -8/Materials | Hacked Datajack | -8/Materials | Hacked Com. Wheel | -7/Factory | Hacked Remote Datajack | -7/Factory | Hacked Missile Launcher | -7/Factory | Hacked Katana | -7/Factory | Hacked Alien Tech Used ----------------- None Achievements -------------- Factory Defaults Hydra Let Me Out Of Here Satisfying Versatile We Love MA Well Done Challenges ------------ None Game ------ Seed BarragePrecisionScreen Manual? 0 Play Time 02:09:51 Cumulative 47.0 hours Start 2026.08.22 @ 01:38:04 End 2026.08.22 @ 05:34:59 Sessions 7 Manual Loads 0 Difficulty Rogue Special Mode None Game No. 61 Rogue 61 Adventurer 0 Explorer 0 Win Type - Total 0 Types 0/0/0/0/0/0/0/0/0/0 Lore% 18 Gallery% 31 Achievement% 24 Wizard Run 0 Options --------- Layout 0 ASCII 1 Keyboard 0 Movement Numpad Keybinds 0 Fullscreen 2 Font 18/SmallcapsGlow Map View 76x50 Zoom Use 0% Tactical HUD 1 Map Filters NONE Filters NONE Steam 1 RUN: 66e9affb-6578-4ffd-9632-0863c43ecb19